bitfinex-derivatives/quotes_BTCF0:USTF0_20250926
["timestamp","ask_amount","ask_price","bid_price","bid_amount"]
[1758894330268,0.1254899,109620.0,109610.0,0.20449456]
[1758894330967,0.1254899,109620.0,109610.0,0.18238836]
[1758894331165,0.5254899,109620.0,109610.0,0.09122006]
[1758894331358,0.0911765,109600.0,109590.0,0.3301681]
[1758894331870,0.0911765,109600.0,109590.0,0.42139649]
[1758894331871,0.1266065,109600.0,109590.0,0.42139649]
[1758894332066,0.1266065,109600.0,109590.0,0.20451649]
[1758894332263,0.03543,109600.0,109590.0,0.20451649]
[1758894332467,0.1266008,109610.0,109600.0,0.1127465]
[1758894332665,0.1246008,109610.0,109600.0,0.1127465]
[1758894333060,0.1246008,109610.0,109600.0,0.20399153]
[1758894334073,0.1246008,109610.0,109600.0,0.20403153]
[1758894334372,0.0911656,109620.0,109610.0,0.1127381]
[1758894334664,0.1265956,109620.0,109610.0,0.1127381]
[1758894334870,0.1265898,109620.0,109610.0,0.02157]
[1758894335057,0.1265898,109620.0,109610.0,0.11280671]
[1758894335263,0.5265898,109620.0,109610.0,0.11280671]
[1758894335461,0.5265898,109620.0,109600.0,0.00104]
[1758894335462,0.1265982,109610.0,109600.0,0.00104]
[1758894335662,0.1265982,109610.0,109600.0,0.0922165]
[1758894335870,0.1265982,109610.0,109600.0,0.20501489]
[1758894336068,0.1265982,109610.0,109600.0,0.11383839]
[1758894336459,0.1265982,109610.0,109600.0,0.09226839]
[1758894336664,0.1265982,109610.0,109600.0,0.00104]
[1758894336665,0.91952315,109610.0,109600.0,0.00104]
[1758894336865,0.91952315,109610.0,109600.0,4e-05]
[1758894337467,1.82104315,109610.0,109600.0,4e-05]
[1758894337769,1.84349377,109610.0,109600.0,4e-05]
[1758894337972,1.85549377,109610.0,109600.0,4e-05]
[1758894338174,1.92994576,109610.0,109600.0,4e-05]
[1758894338671,1.92994576,109610.0,109570.0,0.0912014]
[1758894338672,0.0911931,109580.0,109570.0,0.0912014]
[1758894338871,0.1126931,109580.0,109570.0,0.1127714]
[1758894339068,0.1126931,109580.0,109570.0,0.20400811]
[1758894339269,0.0911931,109580.0,109570.0,0.20400811]
[1758894339469,0.01393,109590.0,109570.0,0.20400811]
[1758894339470,0.1266194,109590.0,109580.0,0.1127631]
[1758894339668,0.1126848,109590.0,109580.0,0.1127631]
[1758894340070,0.1266148,109590.0,109580.0,0.11283169]
[1758894340266,0.1126848,109590.0,109580.0,0.20402479]
[1758894340672,0.1266148,109590.0,109580.0,0.20402479]
[1758894340873,0.1266148,109590.0,109580.0,0.09126169]
[1758894341571,0.1266148,109590.0,109580.0,0.20402479]
[1758894341982,0.1276148,109590.0,109580.0,0.20402479]
[1758894342678,0.1276148,109590.0,109580.0,0.11283169]
[1758894342881,0.1276148,109590.0,109580.0,0.20402479]
[1758894343176,0.1456148,109590.0,109580.0,0.20402479]
[1758894343777,0.1316848,109590.0,109580.0,0.20402479]
[1758894343974,0.0405,109590.0,109580.0,0.20402479]
[1758894344176,0.019,109590.0,109580.0,1.00861974]
[1758894344377,0.1101849,109590.0,109580.0,1.00861974]
[1758894344681,0.1316849,109590.0,109580.0,0.60402479]
[1758894345077,0.019,109590.0,109580.0,0.61569479]
[1758894345378,0.012,109590.0,109580.0,0.96737086]
[1758894346082,0.0911767,109600.0,109590.0,0.1127549]
[1758894346678,0.0911767,109600.0,109590.0,0.20400826]
[1758894346881,0.1266039,109610.0,109600.0,0.1127466]
[1758894347071,0.0911739,109610.0,109600.0,0.1127466]
[1758894347277,0.1265956,109620.0,109610.0,0.1127382]
[1758894347477,0.1265956,109620.0,109610.0,0.02157]
[1758894347680,0.1050982,109610.0,109600.0,0.1127406]
[1758894347883,0.1265982,109610.0,109600.0,0.1127406]
[1758894348181,0.1265982,109610.0,109600.0,0.11281503]
[1758894348383,0.1266066,109600.0,109590.0,0.1127524]
[1758894348680,0.1386066,109600.0,109590.0,0.02157]
[1758894348880,0.1266149,109590.0,109580.0,0.09001087]
[1758894349084,0.1266232,109580.0,109570.0,0.1127715]
[1758894349989,0.1266232,109580.0,109570.0,0.20401653]
[1758894351181,0.1266232,109580.0,109570.0,0.1127715]
[1758894351984,0.1386232,109580.0,109570.0,0.1127715]
[1758894352487,0.012,109580.0,109570.0,1.86869926]
[1758894352686,0.012,109580.0,109570.0,0.96737926]
[1758894352986,0.04743,109580.0,109570.0,1.10535319]
[1758894353385,0.1386232,109580.0,109570.0,1.10535319]
[1758894353581,0.1386232,109580.0,109570.0,0.20403319]
[1758894354179,0.04743,109580.0,109570.0,0.20403319]
[1758894354385,0.012,109580.0,109570.0,0.61570319]
[1758894355488,0.012,109580.0,109570.0,0.61770319]
[1758894356194,0.1386232,109580.0,109570.0,0.60603319]
[1758894356387,0.1386232,109580.0,109570.0,0.60403319]
[1758894357289,0.1386232,109580.0,109570.0,0.20403319]
[1758894357689,0.012,109580.0,109570.0,0.20403319]
[1758894357884,0.012,109580.0,109570.0,0.21570319]
[1758894358491,0.012,109580.0,109570.0,0.61570319]
[1758894359392,0.1386232,109580.0,109570.0,0.60403319]
[1758894360198,0.1386232,109580.0,109570.0,0.20403319]
[1758894360397,0.012,109580.0,109570.0,0.20403319]
[1758894360702,0.012,109580.0,109570.0,0.56878926]
[1758894361295,0.1386232,109580.0,109570.0,0.20403319]
[1758894362099,0.1386232,109580.0,109570.0,0.11283169]
[1758894363002,0.1386232,109580.0,109570.0,0.20403319]
[1758894364602,0.1386232,109580.0,109570.0,0.11283169]
[1758894365501,0.1386232,109580.0,109570.0,0.20403309]
[1758894365900,0.1386232,109580.0,109570.0,0.20403319]
[1758894366295,0.1386232,109580.0,109570.0,0.11283169]
[1758894367196,0.1270815,109570.0,109560.0,0.08798732]
[1758894367397,0.1270815,109570.0,109560.0,0.06500732]
[1758894367602,0.1270899,109560.0,109550.0,0.06500732]
[1758894367899,0.1270982,109550.0,109540.0,0.09689138]
[1758894368097,0.47877427,109550.0,109540.0,0.06500732]
[1758894368297,0.1271147,109530.0,109520.0,0.08798732]
[1758894368700,0.03588,109530.0,109520.0,0.17923032]
[1758894368903,0.03588,109530.0,109520.0,0.20550135]
[1758894369999,0.023,109530.0,109520.0,0.20550135]
[1758894370699,0.03588,109540.0,109530.0,0.1142148]
[1758894371300,0.03588,109540.0,109530.0,0.20550981]
[1758894371904,0.1271063,109540.0,109530.0,0.09129501]
[1758894372302,0.03588,109540.0,109530.0,0.1142149]
[1758894373915,0.1041015,109550.0,109530.0,0.1142149]
[1758894373916,0.1270982,109550.0,109540.0,0.02298]
[1758894374208,0.03588,109540.0,109530.0,0.20550521]
[1758894374507,0.127098,109550.0,109540.0,0.02298]
[1758894375617,0.127098,109550.0,109540.0,0.1142066]
[1758894375908,0.023,109550.0,109540.0,0.20549328]
[1758894376517,0.1270949,109560.0,109550.0,0.1141981]
[1758894376812,0.1270949,109560.0,109550.0,0.02298]
[1758894377212,0.130102,109550.0,109540.0,0.02298]
[1758894377612,0.130102,109550.0,109540.0,0.11425835]
[1758894378015,0.114222,109550.0,109540.0,0.20548505]
[1758894378206,0.127102,109550.0,109540.0,0.11425835]
[1758894378610,0.091222,109550.0,109540.0,0.21834525]
[1758894378816,0.03588,109560.0,109550.0,0.1141986]
[1758894379007,0.1142072,109570.0,109560.0,0.02298]
[1758894379211,0.1270966,109560.0,109550.0,0.02298]
[1758894379409,0.1270984,109550.0,109540.0,0.02298]
[1758894379609,0.1270984,109550.0,109540.0,0.1142067]
[1758894379814,0.1270984,109550.0,109540.0,0.20548505]
[1758894380213,0.03588,109550.0,109540.0,0.20548505]
[1758894380607,0.1270954,109560.0,109550.0,0.1141986]
[1758894380912,0.023,109560.0,109550.0,0.1141986]
[1758894381114,0.026,109560.0,109550.0,0.1270586]
[1758894381315,0.003,109560.0,109550.0,0.21834528]
[1758894381905,0.0942102,109560.0,109550.0,0.21834528]
[1758894382216,0.1300902,109560.0,109550.0,0.20548528]
[1758894382419,0.1270902,109560.0,109550.0,0.20548528]
[1758894382714,0.1280902,109560.0,109550.0,0.20548528]
[1758894383515,0.1152102,109560.0,109550.0,0.21509528]
[1758894383813,0.0922102,109560.0,109550.0,0.21509528]
[1758894384014,0.1280902,109560.0,109550.0,0.20548528]
[1758894384215,0.001,109560.0,109550.0,0.21509528]
[1758894384620,0.012,109580.0,109550.0,0.96677135]
[1758894384812,0.012,109580.0,109570.0,0.47546797]
[1758894385210,0.012,109580.0,109570.0,0.87546797]
[1758894385415,0.012,109580.0,109570.0,0.96672966]
[1758894385621,0.012,109580.0,109570.0,0.61505359]
[1758894386113,0.035,109580.0,109570.0,0.61505359]
[1758894386716,0.1390735,109580.0,109570.0,0.61505359]
[1758894387118,0.1390735,109580.0,109570.0,0.60544359]
[1758894387315,0.1390735,109580.0,109570.0,0.20544359]
[1758894387822,0.012,109580.0,109570.0,0.21586359]
[1758894388326,0.012,109580.0,109570.0,0.96753966]
[1758894389312,0.013,109580.0,109570.0,0.96753966]
[1758894389915,0.013,109580.0,109570.0,0.61586359]
[1758894390119,0.012,109580.0,109570.0,0.61586359]
[1758894390820,0.012,109580.0,109570.0,0.62518129]
[1758894391715,0.012,109580.0,109570.0,0.97685736]
[1758894392425,0.1261588,109610.0,109600.0,0.02113]
[1758894392722,0.1261588,109610.0,109600.0,0.1123071]
[1758894393215,0.02211,109610.0,109600.0,0.21398879]
[1758894393418,0.1261505,109620.0,109610.0,0.1122988]
[1758894393924,0.03499,109620.0,109610.0,0.1122988]
[1758894394119,0.03499,109620.0,109610.0,0.20353551]
[1758894394426,0.1261505,109620.0,109610.0,0.20353551]
[1758894394820,0.1261505,109620.0,109610.0,0.11236671]
[1758894395123,0.1265288,109610.0,109600.0,0.1123025]
[1758894395513,0.1265288,109610.0,109600.0,0.20353089]
[1758894396328,0.1265288,109610.0,109600.0,0.02113]
[1758894396523,0.1265288,109610.0,109600.0,0.1123071]
[1758894397026,0.03836,109610.0,109600.0,0.20354381]
[1758894397224,0.02511,109610.0,109600.0,0.21396381]
[1758894397425,0.003,109610.0,109600.0,0.21396381]
[1758894397619,0.03141401,109640.0,109630.0,0.1122821]
[1758894397620,0.03536,109640.0,109630.0,0.1122821]
[1758894398118,0.1265038,109640.0,109630.0,0.1122821]
[1758894398313,0.1265038,109640.0,109630.0,0.20351881]
[1758894398925,0.0911413,109650.0,109640.0,0.1122738]
[1758894399116,0.03536,109660.0,109650.0,0.1122655]
[1758894399313,0.126483,109670.0,109660.0,0.02113]
[1758894400025,0.1264947,109660.0,109650.0,0.56633]
[1758894400324,0.1264947,109660.0,109650.0,0.6574655]
[1758894400524,0.1264947,109660.0,109650.0,0.74865229]
[1758894400726,0.1264947,109660.0,109650.0,0.65751679]
[1758894401022,0.1264947,109660.0,109650.0,0.02113]
[1758894401222,0.1264947,109660.0,109650.0,0.1122655]
[1758894401223,0.03536,109660.0,109650.0,0.1122655]
[1758894401425,0.1264835,109670.0,109660.0,0.02113]
[1758894402723,0.126491,109660.0,109650.0,0.02113]
[1758894402922,0.126491,109660.0,109650.0,0.1122655]
[1758894403118,0.03536,109660.0,109650.0,0.20345229]
[1758894403627,0.1132372,109660.0,109650.0,0.20345229]
[1758894405317,0.1132372,109660.0,109650.0,0.11231679]
[1758894405318,0.1264872,109660.0,109650.0,0.11231679]
[1758894405523,0.1264872,109660.0,109650.0,0.20345229]
[1758894406129,0.1284872,109660.0,109650.0,0.20345229]
[1758894406530,0.1284872,109660.0,109650.0,0.11231679]
[1758894406725,0.1284872,109660.0,109650.0,0.20345229]
[1758894407428,0.002,109660.0,109650.0,0.21387229]
[1758894407625,0.002,109660.0,109650.0,0.60677658]
[1758894407825,0.002,109660.0,109650.0,1.00677658]
[1758894408416,0.002,109660.0,109650.0,1.90773658]
[1758894409226,0.00148164,109660.0,109650.0,2.40156155]
[1758894409419,0.02211,109690.0,109680.0,0.02113]
[1758894409616,0.1264623,109690.0,109680.0,0.1122406]
[1758894409820,0.11325,109700.0,109690.0,0.1122323]
[1758894410125,0.1,109700.0,109690.0,0.50513659]
[1758894410324,0.12211,109700.0,109690.0,0.1122323]
[1758894410526,0.226454,109700.0,109690.0,0.02113]
[1758894410820,0.1043523,109690.0,109680.0,0.1122405]
[1758894411128,0.1264623,109690.0,109680.0,0.20340235]
[1758894411325,0.1264623,109690.0,109680.0,0.11229185]
[1758894411524,0.03536,109690.0,109680.0,0.20340245]
[1758894411730,0.03536,109690.0,109680.0,0.59630674]
[1758894411930,0.1264623,109690.0,109680.0,0.20340245]
[1758894413425,0.03536,109690.0,109680.0,0.20340245]
[1758894413632,0.11425,109700.0,109680.0,0.59630674]
[1758894413932,0.02211,109690.0,109680.0,0.59630674]
[1758894414327,0.1264623,109690.0,109680.0,0.59630674]
[1758894414521,0.1274623,109690.0,109680.0,0.20340245]
[1758894414927,0.001,109690.0,109680.0,0.21382245]
[1758894415122,0.001,109690.0,109680.0,0.60672674]
[1758894415324,0.001,109690.0,109680.0,1.00672674]
[1758894416333,0.001,109690.0,109680.0,0.61382245]
[1758894416532,0.001,109690.0,109680.0,1.00672674]
[1758894417627,0.001,109690.0,109680.0,0.61382245]
[1758894417825,0.001,109690.0,109680.0,1.00672674]
[1758894418229,0.012,109690.0,109680.0,1.00672674]
[1758894420432,0.1,109700.0,109690.0,0.1226523]
[1758894420731,0.1,109700.0,109690.0,1.44483659]
[1758894421136,0.1,109700.0,109690.0,1.14310246]
[1758894421336,0.1,109700.0,109690.0,1.53600675]
[1758894421736,0.102,109700.0,109690.0,1.53616675]
[1758894421937,0.119,109700.0,109690.0,1.53616675]
[1758894422532,0.15522,109700.0,109690.0,0.20340246]
[1758894422737,0.15522,109700.0,109690.0,1.14246337]
[1758894422937,0.15522,109700.0,109690.0,1.53536766]
[1758894423339,0.119,109700.0,109690.0,1.94578766]
[1758894423531,0.119,109700.0,109690.0,1.54578766]
[1758894424336,0.15522,109700.0,109690.0,0.21250337]
[1758894424536,0.15522,109700.0,109690.0,1.14214337]
[1758894424836,0.646314,109700.0,109690.0,0.11230016]
[1758894425139,0.646314,109700.0,109690.0,0.62566016]
[1758894425643,0.646314,109700.0,109690.0,0.71676246]
[1758894425935,0.55522,109700.0,109690.0,0.71676246]
[1758894426140,0.646314,109700.0,109690.0,0.71676246]
[1758894426336,0.646314,109700.0,109690.0,0.11230016]
[1758894426537,0.646314,109700.0,109680.0,1.41344999]
[1758894426538,0.1254223,109690.0,109680.0,1.0433357]
[1758894426838,0.1254223,109690.0,109680.0,0.20497755]
[1758894427033,0.13194,109700.0,109690.0,0.1138123]
[1758894427034,0.1534,109700.0,109690.0,0.1138123]
[1758894427238,0.119,109700.0,109690.0,0.51713659]
[1758894427442,0.119,109700.0,109690.0,0.1242323]
[1758894427739,0.244414,109700.0,109690.0,0.20497415]
[1758894428545,0.13432,109700.0,109690.0,0.20497415]
[1758894429042,0.12146,109700.0,109690.0,0.20497415]
[1758894429243,0.1,109700.0,109690.0,0.60829844]
[1758894429443,0.108,109700.0,109690.0,0.60829844]
[1758894429745,0.109,109700.0,109690.0,0.60829844]
[1758894429940,0.13046,109700.0,109690.0,0.20497415]
[1758894430244,0.109,109700.0,109690.0,1.15513415]
[1758894430444,0.12186,109700.0,109690.0,1.54803844]
[1758894430648,0.14332,109700.0,109690.0,1.54799844]
[1758894431041,0.109,109700.0,109690.0,1.55841844]
[1758894431746,0.12186,109700.0,109690.0,1.15509415]
[1758894432044,0.109,109700.0,109690.0,1.55841844]
[1758894432245,0.109,109700.0,109690.0,1.16551415]
[1758894432446,0.109,109700.0,109690.0,1.55841844]
[1758894432943,0.109,109700.0,109690.0,1.54799844]
[1758894433135,0.14332,109700.0,109690.0,0.20497415]
[1758894433332,0.14332,109700.0,109690.0,1.55407844]
[1758894433743,0.13046,109700.0,109690.0,1.55407844]
[1758894434040,0.14332,109700.0,109690.0,1.55407844]
[1758894434848,0.14332,109700.0,109690.0,0.59787844]
[1758894435047,0.14332,109700.0,109690.0,1.55327844]
[1758894436147,0.14332,109700.0,109690.0,0.20497415]
[1758894436351,0.54332,109700.0,109690.0,1.13837415]
[1758894436648,0.54332,109700.0,109690.0,1.53127844]
[1758894436845,0.14332,109700.0,109690.0,1.53127844]
[1758894437346,0.13046,109700.0,109690.0,1.54169844]
[1758894437544,0.14332,109700.0,109690.0,1.53127844]
[1758894437751,0.13532,109700.0,109690.0,1.53527844]
[1758894438243,0.226414,109700.0,109690.0,1.16297415]
[1758894438646,0.225414,109700.0,109690.0,1.16297415]
[1758894438845,0.226414,109700.0,109690.0,1.16297415]
[1758894439349,0.626414,109700.0,109690.0,0.20897415]
[1758894439644,0.626414,109700.0,109690.0,0.0951023]
[1758894439854,0.5576606,109700.0,109690.0,0.1178123]
[1758894440152,0.13532,109700.0,109690.0,0.60187844]
[1758894440342,0.13532,109700.0,109690.0,0.61229844]
[1758894440538,0.13532,109700.0,109690.0,0.0951023]
[1758894440539,0.626414,109700.0,109690.0,0.0951023]
[1758894440745,0.226414,109700.0,109690.0,0.1178123]
[1758894440940,0.13532,109700.0,109690.0,0.60187844]
[1758894441146,0.101,109700.0,109690.0,0.61081844]
[1758894441552,0.101,109700.0,109690.0,0.21791415]
[1758894441754,0.101,109700.0,109690.0,0.61081844]
[1758894442141,0.213554,109700.0,109690.0,0.61081844]
[1758894442342,0.226414,109700.0,109690.0,1.55307844]
[1758894442544,1.01931829,109700.0,109690.0,0.09516185]
[1758894442750,1.04166326,109700.0,109690.0,0.004]
[1758894443256,0.64875897,109700.0,109690.0,0.004]
[1758894443460,1.04166326,109700.0,109690.0,0.004]
[1758894444057,1.04166326,109700.0,109690.0,0.02671]
[1758894444058,0.55766497,109700.0,109690.0,0.02671]
[1758894444358,0.12334497,109700.0,109690.0,0.52113659]
[1758894444745,0.13532,109700.0,109690.0,0.60187844]
[1758894444954,0.24875514,109700.0,109690.0,0.20897415]
[1758894445144,0.15766114,109700.0,109690.0,0.20897415]
[1758894446562,0.13532,109700.0,109690.0,0.60187844]
[1758894446853,0.15766267,109700.0,109690.0,0.60187844]
[1758894447156,0.13532,109700.0,109690.0,0.60187844]
[1758894447750,0.226414,109700.0,109690.0,0.60187844]
[1758894447950,0.13532,109700.0,109690.0,0.60187844]
[1758894448153,0.15766276,109700.0,109690.0,0.60187844]
[1758894448461,0.15766276,109700.0,109690.0,0.004]
[1758894448462,0.64875676,109700.0,109690.0,0.004]
[1758894449153,0.64875676,109700.0,109690.0,0.0951023]
[1758894449353,0.64875676,109700.0,109690.0,0.004]
[1758894450262,0.64875676,109700.0,109690.0,0.0951023]
[1758894450959,0.55766276,109700.0,109690.0,0.51071659]
[1758894451264,0.13532,109700.0,109690.0,0.60187844]
[1758894451456,0.13532,109700.0,109690.0,0.20897415]
[1758894451662,0.226414,109700.0,109690.0,0.60187844]
[1758894452362,0.226414,109700.0,109690.0,0.20897415]
[1758894452659,0.225414,109700.0,109690.0,0.60187844]
[1758894452860,0.225414,109700.0,109690.0,0.20897415]
[1758894453056,0.225414,109700.0,109690.0,0.60187844]
[1758894453651,0.226414,109700.0,109690.0,0.60187844]
[1758894453857,0.12292,109700.0,109690.0,0.21939415]
[1758894454163,0.12292,109700.0,109690.0,0.61229844]
[1758894454463,0.13645,109700.0,109690.0,0.61229844]
[1758894454761,0.13645,109700.0,109690.0,0.60187844]
[1758894455264,0.227544,109700.0,109690.0,0.60187844]
[1758894455467,0.227544,109700.0,109690.0,0.60487844]
[1758894456163,0.226544,109700.0,109690.0,0.60487844]
[1758894456562,0.13545,109700.0,109690.0,0.60487844]
[1758894456762,0.226544,109700.0,109690.0,0.60487844]
[1758894457161,0.227544,109700.0,109690.0,0.21197415]
[1758894457364,0.227544,109700.0,109690.0,0.60487844]
[1758894457760,0.227544,109700.0,109690.0,0.59887844]
[1758894458359,0.627544,109700.0,109690.0,0.001]
[1758894458566,0.627544,109700.0,109690.0,0.0921023]
[1758894458866,0.627544,109700.0,109690.0,0.1139023]
[1758894459060,0.627544,109700.0,109690.0,0.0921023]
[1758894459362,0.627544,109700.0,109690.0,0.001]
[1758894459560,0.227544,109700.0,109690.0,0.001]
[1758894459760,0.626544,109700.0,109690.0,0.001]
[1758894460467,0.226544,109700.0,109690.0,0.001]
[1758894460961,0.227544,109700.0,109690.0,0.001]
[1758894462570,0.627544,109700.0,109690.0,0.001]
[1758894462862,0.03545,109680.0,109670.0,0.17792062]
[1758894463058,0.1046371,109690.0,109680.0,0.1129105]
[1758894463059,0.1265571,109690.0,109680.0,0.1129105]
[1758894463261,0.1265571,109690.0,109680.0,0.50581479]
[1758894463461,0.1265571,109690.0,109680.0,0.1129105]
[1758894463761,0.1265571,109690.0,109680.0,0.50581479]
[1758894463963,0.1265571,109690.0,109680.0,0.1129105]
[1758894464162,0.1265571,109690.0,109680.0,0.50581479]
[1758894464569,0.03645,109690.0,109680.0,0.51623479]
[1758894464873,0.001,109690.0,109680.0,1.07241227]
[1758894465769,0.001,109690.0,109680.0,1.07341227]
[1758894466465,0.1056322,109690.0,109680.0,1.06899227]
[1758894466770,0.1056322,109690.0,109680.0,1.02710897]
[1758894466970,0.01453,109690.0,109680.0,1.02710897]
[1758894467670,0.03545,109690.0,109680.0,0.96210165]
[1758894467873,0.03545,109690.0,109680.0,0.61108066]
[1758894468069,0.03545,109690.0,109680.0,0.96210165]
[1758894468668,0.03545,109690.0,109680.0,1.03767336]
[1758894468669,0.02192,109690.0,109680.0,1.03767336]
[1758894468871,0.03545,109690.0,109680.0,1.02725336]
[1758894469076,0.2265492,109700.0,109690.0,0.1129022]
[1758894469364,0.2265492,109700.0,109690.0,0.17805375]
[1758894469763,0.13545,109700.0,109690.0,0.17805375]
[1758894470173,0.2265439,109700.0,109690.0,0.17805375]
[1758894470471,0.1265522,109690.0,109680.0,1.15425905]
[1758894470673,0.1265522,109690.0,109680.0,1.49828004]
[1758894470869,0.1265522,109690.0,109680.0,1.58944189]
[1758894471069,0.1265522,109690.0,109680.0,0.2692209]
[1758894473376,0.5265522,109690.0,109680.0,0.06515155]
[1758894473674,0.1265605,109680.0,109670.0,0.06515155]
[1758894473874,0.1205605,109680.0,109670.0,0.06515155]
[1758894474275,0.1205605,109680.0,109670.0,0.15627035]
[1758894474468,0.5205605,109680.0,109670.0,0.15627035]
[1758894474664,0.5205605,109680.0,109670.0,0.06515155]
[1758894474870,0.1265688,109670.0,109660.0,0.17807375]
[1758894475075,0.1135688,109670.0,109660.0,0.17812018]
[1758894476370,0.1135688,109670.0,109660.0,0.06519798]
[1758894476776,0.1135688,109670.0,109660.0,0.15632508]
[1758894476972,0.1135688,109670.0,109660.0,0.17812508]
[1758894477174,0.1265688,109670.0,109660.0,0.17812508]
[1758894477375,0.1265688,109670.0,109660.0,0.08699798]
[1758894477676,0.1265771,109660.0,109650.0,0.17812818]
[1758894478371,0.5265771,109660.0,109650.0,0.06519798]
[1758894478571,0.091152,109630.0,109610.0,0.08125915]
[1758894478771,0.0911848,109590.0,109580.0,0.01383]
[1758894478977,0.84220579,109590.0,109580.0,0.01383]
[1758894479778,0.44220579,109590.0,109580.0,0.01383]
[1758894479981,0.0911848,109590.0,109580.0,0.03563]
[1758894480378,0.0717608,109610.0,109600.0,0.01383]
[1758894480575,0.0911685,109610.0,109600.0,0.03563]
[1758894481176,0.0911475,109640.0,109600.0,0.12688336]
[1758894481383,0.0911475,109640.0,109630.0,0.03563]
[1758894481888,0.0911475,109640.0,109630.0,0.03715]
[1758894482687,0.1071475,109640.0,109630.0,0.03715]
[1758894484086,0.1091475,109640.0,109630.0,0.03715]
[1758894484482,0.1091475,109640.0,109630.0,0.1283019]
[1758894484680,0.1161475,109640.0,109630.0,0.03715]
[1758894485085,0.1161475,109640.0,109630.0,0.1283019]
[1758894485785,0.1041475,109640.0,109630.0,0.21951364]
[1758894486182,0.013,109640.0,109630.0,0.61951364]
[1758894486677,0.013,109640.0,109630.0,0.97053463]
[1758894486883,0.0911331,109660.0,109650.0,0.03578]
[1758894487187,0.0911228,109670.0,109660.0,0.126907]
[1758894487588,0.0911228,109670.0,109660.0,0.03578]
[1758894488283,0.0911228,109670.0,109660.0,0.126907]
[1758894488586,0.46942829,109690.0,109680.0,0.01289]
[1758894488787,0.46027575,109690.0,109680.0,0.01289]
[1758894489390,0.0911103,109680.0,109670.0,0.01289]
[1758894489586,0.44213129,109680.0,109670.0,0.01289]
[1758894490191,0.5156611,109680.0,109670.0,0.01289]
[1758894490386,0.16464011,109680.0,109670.0,0.01289]
[1758894490581,0.5156611,109680.0,109670.0,0.01289]
[1758894490983,0.9156611,109680.0,109670.0,0.01289]
[1758894491597,0.0911186,109670.0,109660.0,0.01289]
[1758894491784,0.44213959,109670.0,109660.0,0.01289]
[1758894491980,0.0911186,109670.0,109660.0,0.03578]
[1758894492185,0.0911186,109670.0,109660.0,0.126907]
[1758894492489,0.5156666,109680.0,109670.0,0.03578]
[1758894492683,0.07952981,109680.0,109670.0,0.1268986]
[1758894492894,0.006,109680.0,109670.0,0.1268986]
[1758894493095,0.006,109680.0,109670.0,0.5268986]
[1758894493294,0.0911068,109690.0,109680.0,0.1268902]
[1758894493493,0.1910973,109700.0,109690.0,0.1268819]
[1758894493696,0.1910973,109700.0,109690.0,0.03578]
[1758894493886,0.1910973,109700.0,109690.0,0.126882]
[1758894494384,0.1910973,109700.0,109690.0,0.03578]
[1758894495194,0.61661851,109700.0,109690.0,0.01289]
[1758894495590,0.61661851,109700.0,109690.0,0.03578]
[1758894496997,0.63761851,109700.0,109690.0,0.03578]
[1758894497190,0.28659752,109700.0,109690.0,0.03578]
[1758894498497,0.63761851,109700.0,109690.0,0.03578]
[1758894498904,0.28659752,109700.0,109690.0,0.03578]
[1758894499092,0.63761851,109700.0,109690.0,0.03578]
[1758894499298,0.63761851,109700.0,109690.0,0.01289]
[1758894499697,0.68659752,109700.0,109690.0,0.03578]
[1758894499996,0.59550022,109700.0,109690.0,0.03578]
[1758894500205,0.20450022,109700.0,109690.0,0.526882]
[1758894500396,0.13,109700.0,109690.0,0.526882]
[1758894500603,0.13,109700.0,109690.0,0.61804385]
[1758894501105,0.13,109700.0,109690.0,1.59128385]
[1758894501400,0.97211469,109700.0,109690.0,0.09075416]
[1758894501600,0.091102,109690.0,109680.0,0.01289]
[1758894501901,0.44212299,109690.0,109680.0,0.01289]
[1758894502099,0.84212299,109690.0,109680.0,0.01289]
[1758894502502,0.0911103,109680.0,109670.0,0.01289]
[1758894502703,0.44213129,109680.0,109670.0,0.01289]
[1758894503500,0.0911103,109680.0,109670.0,0.03578]
[1758894504203,0.0911103,109680.0,109670.0,0.01289]
[1758894504396,0.0911191,109670.0,109660.0,0.01289]
[1758894504597,0.44214009,109670.0,109660.0,0.01289]
[1758894504898,0.84214009,109670.0,109660.0,0.01289]
[1758894505104,0.45712599,109690.0,109680.0,0.03578]
[1758894505298,0.0911108,109680.0,109670.0,0.01289]
[1758894505495,0.45713179,109680.0,109670.0,0.03578]
[1758894506100,0.0911108,109680.0,109670.0,0.03578]
[1758894506496,0.0911108,109680.0,109670.0,0.01289]
[1758894506698,0.44213179,109680.0,109670.0,0.01289]
[1758894507006,0.44513179,109680.0,109670.0,0.01289]
[1758894507597,0.0911191,109670.0,109660.0,0.01289]
[1758894507899,0.0911191,109670.0,109660.0,0.03578]
[1758894508204,0.003,109680.0,109670.0,0.1268991]
[1758894508405,0.0941108,109680.0,109670.0,0.1268991]
[1758894508605,0.0941108,109680.0,109670.0,0.03578]
[1758894508799,0.16878477,109680.0,109670.0,0.03578]
[1758894509914,0.17478477,109680.0,109670.0,0.03578]
[1758894510098,0.52580576,109680.0,109670.0,0.01289]
[1758894510296,0.0911191,109670.0,109660.0,0.01289]
[1758894510499,0.44214009,109670.0,109660.0,0.01289]
[1758894511402,0.0911274,109660.0,109650.0,0.01289]
[1758894511597,0.44214839,109660.0,109650.0,0.01289]
[1758894511802,0.44214839,109660.0,109650.0,0.03578]
[1758894512003,0.0911274,109660.0,109650.0,0.03578]
[1758894512209,0.08367397,109680.0,109650.0,0.03578]
[1758894512508,0.0911271,109670.0,109660.0,0.03421]
[1758894512702,0.11545754,109670.0,109660.0,0.03421]
[1758894513103,0.45114695,109670.0,109660.0,0.0127]
[1758894513303,0.47548654,109670.0,109660.0,0.0127]
[1758894513495,0.48448654,109670.0,109660.0,0.0127]
[1758894514109,0.0911274,109660.0,109650.0,0.01293]
[1758894514412,0.44214839,109660.0,109650.0,0.01293]
[1758894515503,0.84214839,109660.0,109650.0,4e-05]
[1758894515715,0.091144,109640.0,109630.0,0.0127]
[1758894515903,0.44216499,109640.0,109630.0,0.0127]
[1758894516902,0.44216499,109640.0,109620.0,0.0127]
[1758894517104,0.44217329,109630.0,109620.0,0.0127]
[1758894517604,0.0821523,109630.0,109620.0,0.03421]
[1758894517809,0.15518332,109630.0,109620.0,0.1253706]
[1758894518106,0.15518332,109630.0,109620.0,0.03421]
[1758894518306,0.15518332,109630.0,109620.0,0.04921]
[1758894518506,0.1530712,109630.0,109620.0,0.1403706]